bitfinex-derivatives/quotes_BTCF0:USTF0_20250213
["timestamp","ask_amount","ask_price","bid_price","bid_amount"]
[1739472945083,0.2286248,95852.0,95851.0,0.01215643]
[1739472946188,0.2286248,95852.0,95851.0,0.22078343]
[1739472946189,0.02,95852.0,95851.0,0.22078343]
[1739472946379,0.02,95852.0,95851.0,0.32688343]
[1739472947486,0.2286248,95852.0,95851.0,0.11825643]
[1739472949188,0.2286248,95852.0,95851.0,0.01215643]
[1739472951686,0.2316248,95852.0,95851.0,0.00515643]
[1739472952291,0.2316248,95852.0,95851.0,0.00015643]
[1739472952591,0.2336248,95852.0,95851.0,0.00015643]
[1739472959091,0.2086684,95832.0,95831.0,0.00156513]
[1739472959386,0.3386684,95832.0,95831.0,0.00156513]
[1739472960204,0.13,95832.0,95831.0,0.00156513]
[1739472960500,0.13,95832.0,95831.0,0.21023563]
[1739472960999,0.00015652,95841.0,95840.0,0.208651]
[1739472961200,0.01015652,95841.0,95840.0,0.208651]
[1739472962284,0.00015652,95841.0,95840.0,0.569451]
[1739472962486,0.00156557,95852.0,95851.0,0.208627]
[1739472962696,0.03156557,95852.0,95851.0,0.208627]
[1739472963298,0.03156557,95852.0,95851.0,0.21842257]
[1739472963999,0.03356557,95852.0,95851.0,0.21842257]
[1739472964700,0.03356557,95852.0,95851.0,0.22242257]
[1739472965293,0.03556557,95852.0,95851.0,0.21842257]
[1739472965901,0.03456557,95852.0,95851.0,0.22442257]
[1739472966400,0.24319037,95852.0,95851.0,0.21842257]
[1739472966600,0.24219037,95852.0,95851.0,0.21842257]
[1739472966993,0.03356557,95852.0,95851.0,0.21842257]
[1739472969005,0.03256557,95852.0,95851.0,0.21942257]
[1739472969500,0.001,95852.0,95851.0,0.21842257]
[1739472969697,0.00015652,95861.0,95860.0,0.2086074]
[1739472969901,0.11015652,95861.0,95860.0,0.5694074]
[1739472970500,0.00015652,95861.0,95860.0,0.5694074]
[1739472971604,0.32876172,95861.0,95860.0,0.3608]
[1739472971808,0.20876172,95861.0,95860.0,0.3608]
[1739472972101,0.2086215,95854.0,95853.0,0.2086182]
[1739472972305,0.04,95854.0,95851.0,0.00979557]
[1739472972497,0.04,95854.0,95844.0,0.5694409]
[1739472972498,0.2086401,95845.0,95844.0,0.5694409]
[1739472972807,0.2386401,95845.0,95844.0,0.5694409]
[1739472973011,0.1053,95857.0,95844.0,0.3708173]
[1739472973307,0.228614,95857.0,95856.0,0.2086161]
[1739472973500,0.228614,95857.0,95844.0,0.3708173]
[1739472973501,0.2086344,95848.0,95844.0,0.3708173]
[1739472974004,0.2086401,95845.0,95844.0,0.5794596]
[1739472974199,0.3086401,95845.0,95844.0,0.5794596]
[1739472974895,0.3096401,95845.0,95844.0,0.5794596]
[1739472975297,0.2096401,95845.0,95844.0,0.5794596]
[1739472975801,0.2096401,95845.0,95844.0,0.3708173]
[1739472976304,0.2196401,95845.0,95844.0,0.3708173]
[1739472976920,0.011,95845.0,95841.0,0.2009]
[1739472977199,0.011,95845.0,95825.0,0.3608]
[1739472977200,0.2086444,95843.0,95825.0,0.4645]
[1739472977391,0.2086444,95843.0,95842.0,0.20880312]
[1739472977597,0.001,95845.0,95844.0,0.2086423]
[1739472978502,0.3608,95850.0,95849.0,0.2086314]
[1739472978717,0.3708,95850.0,95849.0,0.2086314]
[1739472979705,0.01,95850.0,95849.0,0.2086314]
[1739472980108,0.012,95850.0,95849.0,0.2086314]
[1739472980609,0.014,95850.0,95849.0,0.2086314]
[1739472981006,0.004,95850.0,95849.0,0.2086314]
[1739472981399,0.002,95850.0,95849.0,0.2096314]
[1739472981605,0.2086165,95856.0,95849.0,0.2096314]
[1739472981606,0.2086165,95856.0,95855.0,0.2086183]
[1739472981810,0.2186165,95856.0,95855.0,0.2086183]
[1739472982010,0.01,95856.0,95855.0,0.5694183]
[1739472982309,0.2186161,95856.0,95855.0,0.5694183]
[1739472982915,0.2206161,95856.0,95855.0,0.5694183]
[1739472983910,0.2206161,95856.0,95855.0,0.3608]
[1739472984110,0.2206161,95856.0,95855.0,0.5694183]
[1739472984309,0.012,95856.0,95855.0,0.5694183]
[1739472984710,0.013,95856.0,95855.0,0.5694183]
[1739472986221,0.003,95856.0,95855.0,0.5694183]
[1739472986414,0.2116161,95856.0,95855.0,0.5694183]
[1739472986906,0.002,95856.0,95855.0,0.5694183]
[1739472987714,0.20876322,95861.0,95855.0,0.3608]
[1739472987908,0.20876322,95861.0,95860.0,0.2086074]
[1739472988109,0.2086161,95856.0,95855.0,0.5714177]
[1739472988316,0.2086161,95856.0,95855.0,0.5694177]
[1739472988511,0.2096161,95856.0,95855.0,0.2096177]
[1739472988915,0.2086161,95856.0,95855.0,0.2096177]
[1739472989308,0.21076212,95861.0,95860.0,0.2086074]
[1739472990317,0.00215652,95861.0,95860.0,0.2086074]
[1739472990519,0.00015652,95861.0,95860.0,0.2086074]
[1739472990912,0.00315652,95861.0,95860.0,0.2086074]
[1739472991219,0.00515652,95861.0,95860.0,0.2086074]
[1739472991720,0.11515652,95861.0,95860.0,0.2086074]
[1739472991920,0.32376172,95861.0,95860.0,0.2086074]
[1739472992415,0.32176172,95861.0,95860.0,0.2086074]
[1739472992608,0.32376172,95861.0,95860.0,0.2086074]
[1739472992810,0.32176172,95861.0,95860.0,0.2086074]
[1739472993706,0.32276172,95861.0,95860.0,0.2086074]
[1739472994919,0.11415652,95861.0,95860.0,0.2086074]
[1739472995521,0.00415652,95861.0,95860.0,0.2086074]
[1739472996312,0.00415652,95861.0,95860.0,0.2096074]
[1739472996313,0.00215652,95861.0,95860.0,0.2096074]
[1739472997021,0.00215652,95861.0,95860.0,0.2116074]
[1739472997220,0.00015652,95861.0,95860.0,0.2116074]
[1739472997420,0.00015652,95861.0,95860.0,0.2126074]
[1739472999821,0.00015652,95861.0,95860.0,0.2096074]
[1739473000123,0.00015652,95861.0,95860.0,0.2136074]
[1739473000625,0.00015652,95861.0,95860.0,0.2096074]
[1739473000811,0.00015652,95861.0,95860.0,0.2136074]
[1739473001011,0.00015652,95861.0,95860.0,0.2146074]
[1739473012428,0.4730544,95889.0,95885.0,0.2085486]
[1739473012429,0.2085589,95886.0,95885.0,0.2085486]
[1739473012632,0.11,95886.0,95885.0,0.569353]
[1739473013334,0.3185508,95886.0,95885.0,0.569353]
[1739473013630,0.3215508,95886.0,95885.0,0.569353]
[1739473013828,0.3225508,95886.0,95885.0,0.569353]
[1739473014430,0.114,95886.0,95885.0,0.57945204]
[1739473014732,0.3225508,95886.0,95885.0,0.57945204]
[1739473015433,0.114,95886.0,95885.0,0.57945204]
[1739473016032,0.3225508,95886.0,95885.0,0.57945204]
[1739473018135,0.3225507,95886.0,95885.0,0.57945204]
[1739473019133,0.3225507,95886.0,95885.0,0.21865204]
[1739473022338,0.3225507,95886.0,95885.0,0.01009904]
[1739473022534,0.3225507,95886.0,95876.0,0.36095643]
[1739473022535,0.114,95886.0,95884.0,0.2085536]
[1739473022737,0.2085529,95885.0,95884.0,0.2085536]
[1739473022939,0.3185529,95885.0,95884.0,0.00986203]
[1739473023144,0.2085703,95877.0,95876.0,0.00015643]
[1739473023340,0.2185703,95877.0,95876.0,0.00015643]
[1739473023745,0.01,95877.0,95876.0,0.01002248]
[1739473023938,0.004,95886.0,95885.0,0.2085529]
[1739473024147,0.004,95886.0,95885.0,0.5693529]
[1739473024148,0.014,95886.0,95885.0,0.5693529]
[1739473024442,0.013,95886.0,95885.0,0.5693529]
[1739473025036,0.2215507,95886.0,95885.0,0.5693529]
[1739473025232,0.013,95886.0,95885.0,0.5693529]
[1739473026046,0.003,95886.0,95885.0,0.5693529]
[1739473026637,0.004,95886.0,95885.0,0.5693529]
[1739473027443,0.2085245,95899.0,95898.0,0.2085158]
[1739473027640,0.2085434,95893.0,95892.0,0.2085355]
[1739473027842,0.3285434,95893.0,95892.0,0.2085355]
[1739473029641,0.12,95893.0,95892.0,0.2085355]
[1739473029949,0.003,95899.0,95898.0,0.2085246]
[1739473030146,0.113,95899.0,95898.0,0.5693246]
[1739473030541,0.11,95899.0,95898.0,0.5693246]
[1739473031242,0.11,95899.0,95898.0,0.5713246]
[1739473031640,0.3185224,95899.0,95898.0,0.5713246]
[1739473032738,0.3185224,95899.0,95898.0,0.58119805]
[1739473033351,0.3185224,95899.0,95898.0,0.22039805]
[1739473033550,0.3185224,95899.0,95898.0,0.01187345]
[1739473034339,0.3185224,95899.0,95898.0,0.22039805]
[1739473034950,0.11,95899.0,95898.0,0.22039805]
[1739473035350,0.3185225,95899.0,95898.0,0.22039805]
[1739473040154,0.3185225,95899.0,95898.0,0.01187345]
[1739473040649,0.3185225,95899.0,95898.0,0.22039805]
[1739473040956,0.11,95899.0,95898.0,0.22039805]
[1739473041548,0.3185225,95899.0,95898.0,0.22039805]
[1739473041750,0.11,95899.0,95898.0,0.22039805]
[1739473044858,0.3185224,95899.0,95898.0,0.22039805]
[1739473045755,0.11,95899.0,95898.0,0.22039805]
[1739473047146,0.05949816,95922.0,95912.0,0.0521232]
[1739473047343,0.1967,95939.0,95921.0,0.3608]
[1739473047344,0.12840245,95939.0,95921.0,0.3608]
[1739473047551,0.25840245,95939.0,95938.0,0.2084377]
[1739473048059,0.25840245,95939.0,95932.0,0.3608]
[1739473048358,0.25840245,95939.0,95938.0,0.2084376]
[1739473050053,0.1967,95951.0,95938.0,0.2084376]
[1739473050054,0.0101187,95968.0,95952.0,0.2084073]
[1739473050247,0.14831296,95993.0,95953.0,0.0521009]
[1739473050448,0.07,95993.0,95992.0,0.2083204]
[1739473050754,0.1,96000.0,95998.0,0.2083067]
[1739473050755,0.093342,96000.0,95998.0,0.2083067]
[1739473050953,0.3608,96043.0,96009.0,0.2082835]
[1739473051143,0.12156281,96025.0,96021.0,0.3608]
[1739473051346,0.2082553,96022.0,96021.0,0.3608]
[1739473051545,0.3182553,96022.0,96021.0,0.3608]
[1739473052648,0.3182553,96022.0,96021.0,0.3618]
[1739473052851,0.3182553,96022.0,96021.0,0.001]
[1739473053057,0.3182553,96022.0,96021.0,0.3628]
[1739473053446,0.11,96022.0,96021.0,0.3628]
[1739473054966,0.11,96022.0,96021.0,0.002]
[1739473055654,0.11,96022.0,96021.0,0.3628]
[1739473055855,0.2082552,96023.0,96021.0,0.3628]
[1739473056261,4.505e-05,96022.0,96021.0,0.3628]
[1739473056851,0.01004505,96022.0,96021.0,0.002]
[1739473058065,0.20644505,96022.0,96021.0,0.002]
[1739473058456,0.20644505,96022.0,96012.0,0.00015626]
[1739473058457,0.2082749,96013.0,96012.0,0.00015626]
[1739473058661,0.6790749,96013.0,96012.0,0.00015626]
[1739473058967,0.2082999,96002.0,96000.0,0.12553387]
[1739473059264,0.01,96002.0,95992.0,0.12553387]
[1739473059465,0.2083065,95999.0,95992.0,0.12553387]
[1739473060267,0.2083065,95999.0,95995.0,0.208313]
[1739473060963,0.00015568,96005.0,95992.0,0.12553387]
[1739473061165,0.01015568,96005.0,95995.0,0.12553387]
[1739473061368,0.01015568,96005.0,95992.0,0.12853387]
[1739473061551,0.01015568,96005.0,95995.0,0.12553387]
[1739473061752,0.01015568,96005.0,95992.0,0.12853387]
[1739473062058,0.01015568,96005.0,95992.0,0.12553387]
[1739473062259,0.01015568,96005.0,96003.0,0.2082945]
[1739473063159,0.00015568,96005.0,96003.0,0.2082945]
[1739473063463,0.00015568,96005.0,96003.0,0.5690945]
[1739473064360,0.00215568,96005.0,96003.0,0.5690945]
[1739473065159,4.505e-05,96022.0,96020.0,0.208258]
[1739473065365,0.01004505,96022.0,96020.0,0.208258]
[1739473065765,0.11,96022.0,96018.0,0.3608]
[1739473065965,0.11,96022.0,96021.0,0.2082562]
[1739473066358,0.11,96022.0,96016.0,0.2082665]
[1739473066562,0.11,96022.0,96012.0,0.12553387]
[1739473066563,0.2082739,96014.0,96012.0,0.12553387]
[1739473066865,0.2082778,96012.0,96010.0,0.20843646]
[1739473067067,0.3608,96018.0,96010.0,0.00015626]
[1739473067269,0.2082667,96017.0,96016.0,0.2082667]
[1739473067456,0.2282667,96017.0,96016.0,0.2082667]
[1739473067660,0.02,96017.0,96010.0,0.20843586]
[1739473067961,0.2082779,96012.0,96010.0,0.00015626]
[1739473068165,0.2882779,96012.0,96010.0,0.00015626]
[1739473068464,0.2082792,96011.0,96010.0,0.00015626]
[1739473068661,0.4147792,96011.0,96010.0,0.00015626]
[1739473069471,0.3247792,96011.0,96010.0,0.20843766]
[1739473069866,0.1165,96011.0,96010.0,0.20843766]
[1739473070059,0.02,96011.0,96010.0,0.20843766]
[1739473071271,0.0973,96026.0,96010.0,0.00015626]
[1739473071565,0.13,96026.0,96025.0,0.2082488]
[1739473072770,0.3382467,96026.0,96025.0,0.2082488]
[1739473072974,0.13,96026.0,96021.0,0.01017118]
[1739473073170,0.2082619,96019.0,96018.0,0.3608]
[1739473073363,0.2182619,96019.0,96018.0,0.3608]
[1739473073560,0.208264,96018.0,96017.0,0.01007106]
[1739473073767,0.208264,96018.0,96010.0,0.00215626]
[1739473073768,0.13,96018.0,96010.0,0.00215626]
[1739473074065,0.2082792,96011.0,96010.0,0.00015626]
[1739473074574,0.2782792,96011.0,96010.0,0.00015626]
[1739473076572,0.6390792,96011.0,96010.0,0.00015626]
[1739473080475,0.6390792,96011.0,96010.0,0.20843766]
[1739473080774,0.2782792,96011.0,96010.0,0.00015626]
[1739473081163,0.2782792,96011.0,96010.0,0.20843766]
[1739473081365,0.07,96011.0,96010.0,0.20843766]
[1739473082277,0.1036,96034.0,96017.0,0.0520664]
[1739473082469,0.2236,96034.0,96033.0,0.2082315]
[1739473082774,0.04557292,96034.0,96033.0,0.2082315]
[1739473083072,0.04557292,96034.0,96029.0,0.5690396]
[1739473083276,0.04557292,96034.0,96033.0,0.2082315]
[1739473083868,0.04557292,96034.0,96029.0,0.3608]
[1739473084175,0.25380322,96034.0,96033.0,0.2082315]
[1739473085680,0.25380322,96034.0,96033.0,0.2092315]
[1739473085862,0.04557292,96034.0,96033.0,0.2092315]
[1739473088877,0.2082073,96045.0,96041.0,0.2082142]
[1739473089067,0.12156244,96042.0,96041.0,0.2082142]
[1739473090069,0.12156244,96042.0,96041.0,0.2092142]
[1739473090270,0.12156244,96042.0,96041.0,0.2102142]
[1739473091079,0.12156244,96042.0,96041.0,0.002]
[1739473092778,0.12156244,96042.0,96041.0,0.001]
[1739473093170,0.12156244,96042.0,96037.0,0.3608]
[1739473093578,0.12156244,96042.0,96039.0,0.2082165]
[1739473093779,0.12156244,96042.0,96040.0,0.2082145]
[1739473096674,0.2082165,96040.0,96037.0,0.3608]
[1739473096980,0.3382165,96040.0,96037.0,0.3608]
[1739473097181,0.2082206,96039.0,96037.0,0.3608]
[1739473097484,0.3282206,96039.0,96037.0,0.3608]
[1739473098585,0.2082272,96035.0,96034.0,0.0974]
[1739473098884,0.2082316,96033.0,96032.0,0.00015626]
[1739473099190,0.3182316,96033.0,96032.0,0.00015626]
[1739473100071,0.32843031,96033.0,96032.0,0.00015626]
[1739473100273,0.32843031,96033.0,96032.0,0.00115626]
[1739473100882,0.3182316,96033.0,96032.0,0.00115626]
[1739473101071,0.3182316,96033.0,96032.0,0.00015626]
[1739473102280,0.6790316,96033.0,96032.0,0.00015626]
[1739473102491,0.6790316,96033.0,96010.0,0.12553387]
[1739473102492,0.052065,96020.0,95990.0,0.12553387]
[1739473102788,0.2082849,96009.0,96006.0,0.21815419]
[1739473102988,0.2082849,96009.0,96007.0,0.2082879]
[1739473103182,0.2082771,96012.0,96000.0,0.22133387]
[1739473103487,0.2082838,96009.0,96006.0,0.2152892]
[1739473103784,0.2082838,96009.0,96006.0,0.02386408]
[1739473103986,0.2082838,96009.0,96008.0,0.2082858]
[1739473104774,0.208288,96007.0,96006.0,0.00986408]
[1739473104978,0.208288,96007.0,96006.0,0.2092901]
[1739473105485,0.208288,96007.0,96006.0,0.2082901]
[1739473105680,0.338288,96007.0,96006.0,0.01014917]
[1739473105886,0.13,96007.0,96000.0,0.0958]
[1739473106080,0.208301,96001.0,96000.0,0.0958]
[1739473106683,0.318301,96001.0,96000.0,0.01012895]
[1739473106884,0.2083042,96000.0,95996.0,0.00015626]
[1739473107089,0.11,96000.0,95999.0,0.5691032]
[1739473108377,0.3183031,96000.0,95999.0,0.5691032]
[1739473108680,0.2083031,96000.0,95999.0,0.2083032]
[1739473109186,0.2083031,96000.0,95999.0,0.2093032]
[1739473109780,0.2082957,96005.0,96004.0,0.2082895]
[1739473110082,0.2083032,96001.0,96000.0,0.2083028]
[1739473110391,0.2082905,96006.0,96005.0,0.2082871]
[1739473110689,0.2082905,96006.0,95999.0,0.001]
[1739473110690,0.13,96006.0,95999.0,0.001]
[1739473110989,0.2083032,96000.0,95999.0,0.001]
[1739473112086,0.3608,96007.0,95996.0,0.01017081]
[1739473112292,0.2083097,95997.0,95996.0,0.01017081]
[1739473112482,0.2083097,95997.0,95996.0,0.21848261]
[1739473113987,0.2083097,95997.0,95996.0,0.22048261]
[1739473114178,0.2083097,95997.0,95996.0,0.22148261]
[1739473114594,0.2083097,95997.0,95996.0,0.01317081]
[1739473114785,0.01,95997.0,95996.0,0.00315626]
[1739473114986,0.2183097,95997.0,95996.0,0.00315626]
[1739473115693,0.2183097,95997.0,95996.0,0.21146816]
[1739473116486,0.01,95997.0,95996.0,0.21146816]
[1739473117790,0.2082889,96007.0,95997.0,0.0520773]
[1739473117991,0.2282889,96007.0,96000.0,0.3608]
[1739473118485,0.02,96007.0,96006.0,0.2082902]
[1739473119395,0.00015626,96016.0,96015.0,0.2082706]
[1739473119692,0.02015626,96016.0,96015.0,0.2082706]
[1739473119889,0.02015626,96016.0,96015.0,0.21830353]
[1739473120190,0.22842466,96016.0,96015.0,0.01003293]
[1739473120386,0.02015626,96016.0,96011.0,0.101]
[1739473120588,0.22842496,96016.0,96015.0,0.2082706]
[1739473121088,0.22842496,96016.0,96015.0,0.21847826]
[1739473121399,0.22842496,96016.0,96015.0,0.21947826]
[1739473121587,0.02015626,96016.0,96015.0,0.21947826]
[1739473122098,0.00015626,96016.0,96015.0,0.21847826]
[1739473122295,0.16985175,96034.0,96015.0,0.01020766]
[1739473122484,0.24985175,96034.0,96033.0,0.2082316]
[1739473122689,0.19209233,96034.0,96033.0,0.2082316]
[1739473122898,0.40032173,96034.0,96033.0,0.2082316]
[1739473124797,0.2882294,96034.0,96033.0,0.2082316]
[1739473125806,0.3608,96047.0,96046.0,0.2082034]
[1739473125996,0.13,96047.0,96046.0,0.2082034]
[1739473127195,0.13,96047.0,96046.0,0.21833397]
[1739473130391,0.3382012,96047.0,96046.0,0.21833397]
[1739473130597,0.2082128,96042.0,96041.0,0.2082107]
[1739473130899,0.2882128,96042.0,96041.0,0.21862676]
[1739473131104,0.08,96042.0,96033.0,0.3608]
[1739473131300,0.2082252,96036.0,96035.0,0.2082264]
[1739473131504,0.3282252,96036.0,96035.0,0.2082264]
[1739473131797,0.12,96036.0,96033.0,0.3608]
[1739473132004,0.2082294,96034.0,96033.0,0.3608]
[1739473132302,0.3182294,96034.0,96033.0,0.3618]
[1739473132900,0.3182294,96034.0,96033.0,0.5700316]
[1739473133498,0.3182294,96034.0,96033.0,0.3618]
[1739473134202,0.3182294,96034.0,96033.0,0.3608]
[1739473135211,0.3182294,96034.0,96033.0,0.5690316]
[1739473139407,0.3182294,96034.0,96033.0,0.2082316]
[1739473140005,0.11,96034.0,96033.0,0.2082316]
[1739473140208,0.11,96034.0,96033.0,0.5690316]
[1739473141018,0.2081999,96048.0,96047.0,0.2082012]
[1739473141206,0.3381999,96048.0,96047.0,0.2082012]
[1739473141814,0.13,96048.0,96033.0,0.4154174]
[1739473142110,0.2082294,96034.0,96033.0,0.2082307]
[1739473143010,0.2082316,96033.0,96032.0,0.01004537]
[1739473143206,0.2082337,96032.0,96031.0,0.2082351]
[1739473143410,0.2082337,96032.0,96031.0,0.21828149]
[1739473144710,0.2082337,96032.0,96031.0,0.22028149]
[1739473145023,0.2082193,96039.0,96031.0,0.01204639]
[1739473145210,0.2082258,96036.0,96035.0,0.2082251]
[1739473145512,0.01,96036.0,96035.0,0.5690251]
[1739473147718,0.2182251,96036.0,96035.0,0.5700251]
[1739473148020,0.01,96036.0,96035.0,0.5700251]
[1739473150619,0.2082012,96047.0,96035.0,0.3618]
[1739473150812,0.3382012,96047.0,96046.0,0.2082033]
[1739473151910,0.3382012,96047.0,96046.0,0.21845556]
[1739473153928,0.3382012,96047.0,96046.0,0.2082033]
[1739473154523,0.2082109,96043.0,96042.0,0.2082052]
[1739473154728,0.3282109,96043.0,96042.0,0.2082052]
[1739473154919,0.12,96043.0,96042.0,0.2082052]
[1739473155224,0.00156219,96056.0,96035.0,0.7216]
[1739473155422,0.13156219,96056.0,96055.0,0.2081839]
[1739473155618,0.13156219,96056.0,96055.0,0.21857226]
[1739473157224,0.13156219,96056.0,96055.0,0.22057226]
[1739473166340,0.13,96056.0,96055.0,0.22057226]
[1739473167030,0.13,96056.0,96055.0,0.21857226]
[1739473167226,0.13,96056.0,96055.0,0.23057226]
[1739473167631,0.13,96056.0,96055.0,0.22957226]
[1739473167829,0.07407,96056.0,96055.0,0.22957226]
[1739473168831,0.01043,96071.0,96070.0,0.2081513]
[1739473169036,0.11043,96071.0,96070.0,0.2081513]
[1739473170833,0.08294042,96071.0,96070.0,0.2081513]
[1739473171427,0.07002792,96071.0,96070.0,0.2081513]
[1739473171632,0.2081015,96093.0,96092.0,0.2081012]
[1739473171826,0.3281015,96093.0,96092.0,0.2081012]
[1739473172730,0.3281015,96093.0,96092.0,0.2091012]
[1739473173036,0.3281015,96093.0,96092.0,0.002]
[1739473179732,0.12,96093.0,96092.0,0.2101037]
[1739473180638,0.3281015,96093.0,96092.0,0.2101037]
[1739473181035,0.3281015,96093.0,96092.0,0.002]
[1739473188033,0.1478719,96093.0,96092.0,0.002]
[1739473188232,0.2178719,96093.0,96092.0,0.002]
[1739473192240,0.07,96093.0,96057.0,0.3608]
[1739473192439,0.2081557,96068.0,96065.0,0.2081603]
[1739473192742,0.3381557,96068.0,96065.0,0.2081603]
[1739473192946,0.3381557,96068.0,96061.0,0.2081696]
[1739473193138,0.3381557,96068.0,96057.0,0.3608]
[1739473193333,0.3381557,96068.0,96067.0,0.37096565]
[1739473193637,0.3381557,96068.0,96067.0,0.37196565]
[1739473194037,0.3381557,96068.0,96067.0,0.37396565]
[1739473195238,0.3381557,96068.0,96067.0,0.37296565]
[1739473195444,0.3381557,96068.0,96067.0,0.37396565]
[1739473195644,0.3381557,96068.0,96067.0,0.37196565]
[1739473195846,0.3381557,96068.0,96067.0,0.37096565]
[1739473196051,0.3391557,96068.0,96067.0,0.37096565]
[1739473197538,0.131,96068.0,96067.0,0.57912355]
[1739473199252,0.01,96068.0,96067.0,0.37096565]
[1739473199748,0.01,96068.0,96067.0,0.57912355]
[1739473200351,0.2181557,96068.0,96067.0,0.01016565]
[1739473200555,0.2081752,96059.0,96058.0,0.00015609]
[1739473200858,0.6489752,96059.0,96058.0,0.00015609]
[1739473201046,0.08,96059.0,96058.0,0.20833349]
[1739473201453,0.08,96059.0,96058.0,0.21880802]
[1739473201650,0.2881752,96059.0,96058.0,0.01063062]
[1739473201846,0.45076963,96059.0,96053.0,0.00152]
[1739473202041,0.65894483,96059.0,96058.0,0.002]
[1739473202650,0.6489752,96059.0,96058.0,0.01217714]
[1739473202855,0.6489752,96059.0,96058.0,0.002]
[1739473203046,0.6489752,96059.0,96046.0,0.208202]
[1739473203253,0.6489752,96059.0,96058.0,0.004]
[1739473203449,0.4408,96059.0,96058.0,0.004]
[1739473203855,0.4408,96059.0,96057.0,0.2081787]
[1739473204059,0.4418,96059.0,96058.0,0.0973]
[1739473204257,0.081,96059.0,96058.0,0.4581]
[1739473205061,0.10806038,96069.0,96065.0,0.208162]
[1739473205269,0.13,96069.0,96067.0,0.2081571]
[1739473205571,0.13,96069.0,96068.0,0.3608]
[1739473205762,0.13,96069.0,96068.0,0.4621]
[1739473206868,0.13,96069.0,96068.0,0.47220763]
[1739473207360,0.13,96069.0,96068.0,0.47320763]
[1739473207860,0.13,96069.0,96068.0,0.47220763]
[1739473208258,0.13,96069.0,96068.0,0.11140763]
[1739473208751,0.13,96069.0,96068.0,0.47220763]
[1739473209061,0.13,96069.0,96068.0,0.68036333]
[1739473209453,0.13,96069.0,96068.0,0.68136333]
[1739473210269,0.13,96069.0,96068.0,0.68036333]
[1739473210768,0.3381535,96069.0,96068.0,0.68036333]
[1739473210964,0.3381535,96069.0,96068.0,0.47220763]
[1739473211270,0.3381535,96069.0,96068.0,0.01010763]
[1739473211469,0.13,96069.0,96058.0,0.3054765]
[1739473211658,0.208174,96060.0,96059.0,0.2081752]
[1739473211858,0.338174,96060.0,96059.0,0.2081752]
[1739473212064,0.338174,96060.0,96058.0,0.0973]
[1739473212065,0.2081752,96059.0,96058.0,0.0973]
[1739473212263,0.3181752,96059.0,96058.0,0.3054774]
[1739473212770,0.3181752,96059.0,96051.0,0.0995]
[1739473212771,0.2081904,96052.0,96051.0,0.0995]
[1739473212975,0.2181904,96052.0,96051.0,0.0995]
[1739473213164,0.2181904,96052.0,96044.0,0.0985]
[1739473213370,0.01,96052.0,96051.0,0.2081925]
[1739473213764,0.01,96052.0,96051.0,0.5689925]
[1739473214763,0.01,96052.0,96051.0,0.57935066]
[1739473215163,0.01,96052.0,96051.0,0.58135066]
[1739473215564,0.00768782,96052.0,96051.0,0.58135066]
[1739473215859,0.2081485,96072.0,96051.0,0.37715816]
[1739473216066,0.20816,96066.0,96065.0,0.3608]
[1739473216262,0.2481617,96066.0,96065.0,0.2081622]
[1739473216572,0.04,96066.0,96065.0,0.2081622]
[1739473217265,0.24816,96066.0,96065.0,0.2081622]
[1739473218666,0.04,96066.0,96065.0,0.2081622]
[1739473220473,0.04,96066.0,96052.0,0.0520472]
[1739473220474,0.2081882,96053.0,96052.0,0.3608]
[1739473220672,0.2081904,96052.0,96051.0,0.01035816]
[1739473220871,0.2081904,96052.0,96041.0,0.3608]
[1739473220872,0.02,96052.0,96041.0,0.3608]
[1739473221078,0.02,96052.0,96051.0,0.2081925]
[1739473222181,0.02,96052.0,96051.0,0.2091925]
[1739473223270,0.02,96052.0,96051.0,0.21935722]
[1739473223471,0.02,96052.0,96051.0,0.01116472]
[1739473223671,0.2281904,96052.0,96051.0,0.01116472]
[1739473223880,0.2281904,96052.0,96051.0,0.01016472]
[1739473224079,0.2281904,96052.0,96051.0,0.2081925]
[1739473224281,0.2281904,96052.0,96051.0,0.2101925]
[1739473224578,0.2281904,96052.0,96051.0,0.002]
[1739473224978,0.2281904,96052.0,96051.0,0.0124532]
[1739473225173,0.2281904,96052.0,96051.0,0.002]
[1739473225773,0.2281904,96052.0,96051.0,0.2081926]
[1739473225972,0.02,96052.0,96051.0,0.2081926]
[1739473226779,0.02,96052.0,96051.0,0.21816122]
[1739473227376,0.2081588,96067.0,96064.0,0.2081638]
[1739473227577,0.2481588,96067.0,96065.0,0.2081618]
[1739473228978,0.04,96067.0,96066.0,0.20816]
[1739473231383,0.04,96067.0,96062.0,0.3608]
[1739473231589,0.04,96067.0,96064.0,0.2081634]
[1739473232286,0.04,96067.0,96062.0,0.7216]
[1739473232484,0.04,96067.0,96066.0,0.20816]
[1739473233689,0.11205096,96081.0,96077.0,0.2081362]
[1739473233883,0.00156166,96087.0,96077.0,0.5689362]
[1739473233884,0.02015553,96078.0,96077.0,0.5689362]
[1739473234390,0.02015553,96078.0,96077.0,0.57931076]
[1739473235285,0.00015553,96078.0,96077.0,0.57931076]
[1739473237285,0.097,96098.0,96077.0,0.49670843]
[1739473237480,0.2080978,96095.0,96093.0,0.2081008]
[1739473237690,0.3280978,96095.0,96093.0,0.2081008]
[1739473238283,0.2081016,96093.0,96091.0,0.3608]
[1739473238487,0.3181016,96093.0,96091.0,0.3608]
[1739473239592,0.3181016,96093.0,96091.0,0.001]
[1739473239788,0.3181016,96093.0,96091.0,0.002]
[1739473241395,0.3181016,96093.0,96091.0,0.001]
[1739473241689,0.3181016,96093.0,96084.0,0.20827629]
[1739473241690,0.2081155,96087.0,96084.0,0.20827629]
[1739473241888,0.2381155,96087.0,96084.0,0.20827629]
[1739473242497,0.2081185,96086.0,96084.0,0.00015609]
[1739473242699,0.2381185,96086.0,96084.0,0.00015609]
[1739473244085,0.03,96086.0,96084.0,0.20827649]
[1739473246292,0.03,96086.0,96085.0,0.3608]
[1739473249091,0.03,96086.0,96085.0,0.6629]
[1739473250004,0.03,96086.0,96085.0,0.5632]
[1739473250199,0.2381167,96086.0,96085.0,0.3608]
[1739473250697,0.03,96086.0,96085.0,0.3608]
[1739473254019,0.03,96086.0,96085.0,0.4567]
[1739473258617,0.03,96086.0,96085.0,0.3608]
[1739473260218,0.03,96086.0,96084.0,0.00015609]
[1739473260521,0.4065189,96085.0,96084.0,0.00015609]
[1739473260707,0.4365189,96085.0,96084.0,0.00015609]
[1739473261119,0.03,96085.0,96084.0,0.56907709]
[1739473266311,0.16,96100.0,96099.0,0.2080886]